Cogmind - Beta 15 @@@ ROGUE MODE // 2025.05.26 @ 00:32:53 Player: DGSTER Result: Self-destructed Performance ------------- Evolutions (4) 2000 Regions Visited (11) 2200 Robots Destroyed (107) 535 Value Destroyed (3483) 3483 Prototype IDs (8) 160 Alien Tech Used (0) 0 Bonus (1171) 1171 TOTAL SCORE: 9549 Bonus ------- High Alert Combat Kills 31 Follower Combat Kills 710 Met Imprinter 300 Was Imprinted 300 Friendly Fire -170 Cogmind --------- Core Integrity 747/850 Matter 33/300 Energy 290/290 System Corruption 1% Temperature Cool (0) Movement Treading (165) Location -6/Cetus Parts ------- > --- POWER (2) -------- Improved Deuterium Engine > --- PROPULSION (5) --- Armored Treads Improved Medium Treads > --- UTILITY (6) ------ Large Storage Unit Improved Signal Interpreter Improved Light Armor Plating Improved Hacking Suite > --- WEAPON (2) ------- (None) > --- INVENTORY (15) --- Light Nuclear Core Light Nuclear Core Improved Titanium Leg Improved Titanium Leg Flexi-carbon Leg Advanced Heat Sink Large Storage Unit Improved Sensor Array Tactical Coordination Suite Magnetic Acceleration Cannon Bore Cannon Phasing Sabre Peak State ------------ > --- POWER ------------ Improved Deuterium Engine Light Fission Core > --- PROPULSION ------- Advanced Treads Medium Treads Improved Medium Treads Improved Medium Treads Improved Medium Treads > --- UTILITY ---------- Large Storage Unit Advanced Sensor Array Improved Signal Interpreter Improved Light Armor Plating Improved Hacking Suite High-powered Tractor Beam > --- WEAPON ----------- Magnetic Acceleration Cannon Bore Cannon > --- INVENTORY -------- Light Nuclear Core Light Nuclear Core Armored Treads Improved Medium Treads Improved Titanium Leg Improved Titanium Leg Flexi-carbon Leg Advanced Heat Sink Large Storage Unit Improved Sensor Array Tactical Coordination Suite Improved Light Armor Plating Rocket Array Rocket Array Phasing Sabre [Rating: 67] Favorites ----------- Power Light Deuterium Engine Engine Light Deuterium Engine Power Core Light Fission Core Propulsion Armored Treads Treads Armored Treads Leg Improved Titanium Leg Utility Large Storage Unit Device Improved Sensor Array Storage Large Storage Unit Processor Improved Signal Interpreter Hackware Hacking Suite Protection Hardened Medium Armor Plating Weapon Assault Cannon Energy Gun Heavy Beamcaster Ballistic Gun Minigun Ballistic Cannon Assault Cannon Launcher Rocket Array Slashing Weapon Phasing Sabre Build | -11 -10 -9 -8 -7 -7 -7 -7 -6 -6 -6 -6 ------- Run | Yrd Mat Mat Mat Fac Low Low Zio Pro Fac Ext Cet Slots Evolved 8 | . . 2 2 2 . . . . 2 . . Power 1 | . . . . . . . . . 1 . . Propulsion 3 | . . 1 . 1 . . . . 1 . . Utility 4 | . . 1 2 1 . . . . . . . Weapon . | . . . . . . . . . . . . Parts Attached 78 | 6 9 6 28 3 . . 6 3 4 11 2 Power 13 | 1 2 2 4 . . . . 1 1 2 . Engine 8 | 1 2 2 2 . . . . . . 1 . Core 5 | . . . 2 . . . . 1 1 1 . Reactor . | . . . . . . . . . . . . Propulsion 24 | 2 2 1 8 2 . . 1 1 3 4 . Treads 23 | 2 2 1 8 1 . . 1 1 3 4 . Leg 1 | . . . . 1 . . . . . . . Wheel . | . . . . . . . . . . . . Hover . | . . . . . . . . . . . . Flight . | . . . . . . . . . . . . Utility 21 | 1 3 1 10 1 . . 1 . . 3 1 Device 6 | . . . 4 . . . 1 . . 1 . Storage 3 | 1 2 . . . . . . . . . . Processor 2 | . . . 2 . . . . . . . . Hackware 3 | . . . 1 1 . . . . . 1 . Protection 7 | . 1 1 3 . . . . . . 1 1 Artifact . | . . . . . . . . . . . . Weapon 20 | 2 2 2 6 . . . 4 1 . 2 1 Energy Gun 2 | . . . 1 . . . 1 . . . . Energy Cannon . | . . . . . . . . . . . . Ballistic Gun 5 | 2 . 1 2 . . . . . . . . Ballistic Cannon 9 | . 2 1 3 . . . 1 1 . 1 . Launcher 3 | . . . . . . . 2 . . . 1 Special Weapon . | . . . . . . . . . . . . Impact Weapon . | . . . . . . . . . . . . Slashing Weapon 1 | . . . . . . . . . . 1 . Piercing Weapon . | . . . . . . . . . . . . Special Melee Weapon . | . . . . . . . . . . . . Unidentified Prototypes 6 | . . 2 2 . . . 2 . . . . Corrupted Parts 2 | . . . 1 . . . . . . 1 . System Corruption 4 | . . . 3 . . . . . . 1 . Parts Lost 17 | . 2 . 2 . . . . . . 2 11 Power 3 | . 1 . . . . . . . . 1 1 Propulsion 6 | . 1 . . . . . . . . . 5 Utility 4 | . . . 1 . . . . . . . 3 Weapon 4 | . . . 1 . . . . . . 1 2 Highest Loss Streak 7 | . 1 . 1 . . . . . . 1 7 To Critical Strikes 2 | . . . . . . . . . . . 2 Average Backups 13 | . 6 13 14 15 15 15 14 14 13 14 12 Power 2 | . 3 2 2 2 2 2 2 2 1 1 2 Propulsion 3 | . . . 2 3 4 4 4 4 4 4 3 Utility 4 | . 1 6 5 4 5 5 4 5 5 4 4 Weapon 3 | . 1 5 4 4 4 4 4 3 3 3 3 Tool/Special . | . . . . . . . . . . . . Unused Backups 32 | . 2 5 10 1 . . 3 3 2 . 6 Power 3 | . . 1 . 1 . . . . . . 1 Propulsion 8 | . 1 1 2 . . . . . 2 . 2 Utility 6 | . 1 . 1 . . . . 1 . . 3 Weapon 15 | . . 3 7 . . . 3 2 . . . Tool/Special . | . . . . . . . . . . . . Average Slot Usage (%) 96 | . 88 88 94 97 100 100 100 100 99 99 92 Engine 6 | . 12 11 6 7 7 7 7 3 . 5 6 Core 2 | . . . 2 . . . . 3 12 6 5 Treads 29 | . 28 33 27 28 30 30 30 30 33 33 26 Device 14 | . . . 10 15 15 15 20 23 20 19 12 Storage 8 | . 14 11 9 7 7 7 7 7 6 6 6 Processor 5 | . . . 7 7 7 7 7 7 6 6 6 Hackware 2 | . . . 2 5 7 7 2 . . . 6 Protection 7 | . 4 11 10 7 7 7 7 7 6 6 6 Ballistic Gun 2 | . 20 5 4 . . . . . . . . Ballistic Cannon 12 | . 7 16 13 15 15 15 10 13 13 12 1 Peak Build Rating 67 | 6 8 17 36 42 42 42 46 48 53 67 67 Average Rating 38 | 4 7 13 30 41 42 42 44 46 52 58 59 On Entrance 33 | . 6 8 16 36 42 42 42 46 47 53 67 Naked Turns . | . . . . . . . . . . . . Heaviest Build 61 | 11 34 38 45 45 45 45 50 51 56 61 59 Greatest Support 140 | 40 40 60 62 84 84 84 90 90 112 140 140 Greatest Overweight (x) . | . . . . . . . . . . . . Average Overweight (x) . | . . . . . . . . . . . . Largest Inventory Capacity 15 | 8 15 15 15 15 15 15 15 15 15 15 15 Average Capacity 14 | 6 10 15 15 15 15 15 15 15 15 15 15 Most Carried 15 | 1 10 15 15 15 15 15 15 15 15 15 15 Average Carried 13 | . 6 13 14 14 15 15 14 14 13 14 12 Final Capacity 15 | 8 15 15 15 15 15 15 15 15 15 15 15 Final Carried 15 | 1 9 14 15 15 15 15 15 15 13 15 12 Class Distribution -------------------- 80% | Mutant 18% | Scavenger-Mutant Dominant Class ---------------- Mutant | -10/Materials Mutant | -9/Materials Mutant | -8/Materials Mutant | -7/Factory Mutant | -7/Lower Caves Mutant | -7/Lower Caves Mutant | -7/Zion Mutant | -6/Proximity Caves Scavenger-Mutant | -6/Factory Scavenger-Mutant | -6/Extension Scavenger-Mutant | -6/Cetus Resources | -11 -10 -9 -8 -7 -7 -7 -7 -6 -6 -6 -6 ----------- Run | Yrd Mat Mat Mat Fac Low Low Zio Pro Fac Ext Cet Matter Collected 3771 | 257 278 313 1118 . 386 . 106 261 138 796 118 Remotely 1419 | . . . . . . . 106 261 138 796 118 Salvage Created 2884 | . 475 397 984 . 192 . . 125 134 467 110 Parts 174 | . 32 26 69 . 12 . . 4 3 22 6 Haulers Intercepted 8 | . 2 2 4 . . . . . . . . Recyclers Shooed 6 | . 2 1 1 . . . . . . 2 . Parts Field Recycled . | . . . . . . . . . . . . Retrieved Matter . | . . . . . . . . . . . . Parts Self-Destructed 33 | . . . . . 12 . . 21 . . . Prevented 1 | . . . . . . . . 1 . . . Kills | -11 -10 -9 -8 -7 -7 -7 -7 -6 -6 -6 -6 ------- Run | Yrd Mat Mat Mat Fac Low Low Zio Pro Fac Ext Cet Combat Hostiles Destroyed 76 | . 9 11 23 . 6 . . 5 4 14 4 Guns 16 | . 5 3 8 . . . . . . . . Cannons 52 | . 4 8 15 . 6 . . 5 4 10 . AOE 8 | . . . . . . . . . . 4 4 Classes Destroyed 14 | . 3 4 3 . 3 . . . . . 1 Worker 4 | . . . 4 . . . . . . . . Builder 3 | . . 1 2 . . . . . . . . Tunneler 1 | . 1 . . . . . . . . . . Hauler 8 | . 2 2 4 . . . . . . . . Mechanic 1 | . . . 1 . . . . . . . . Operator 3 | . . . 2 . . . . . . 1 . Watcher 9 | . . 2 3 . . . . . . 2 2 Swarmer 28 | . . 3 9 . 4 . . 3 2 7 . Grunt 27 | . 9 6 8 . . . . 1 . 3 . Sentry 13 | . . 2 6 . . . . . 1 4 . Hunter 2 | . . . . . 1 . . . 1 . . Programmer 2 | . . . . . 1 . . 1 . . . Cetus Guard 4 | . . . . . . . . . . . 4 Packrat 1 | . . . . . 1 . . . . . . Thug 1 | . . . . . . . . . . . 1 Butcher 1 | . . . . . . . . . . . 1 Best Kill Streak 7 | . 5 5 7 . 4 . . 2 2 6 4 Combat Bots Only 5 | . 3 4 4 . 4 . . 2 2 5 4 Max Kills in Single Turn 5 | . 1 2 2 . 1 . . 1 1 5 2 Gunslinging . | . . . . . . . . . . . . Exploded 4 | . . . . . . . . . . 4 2 Melee . | . . . . . . . . . . . . Uniques/NPCs Destroyed . | . . . . . . . . . . . . Combat | -11 -10 -9 -8 -7 -7 -7 -7 -6 -6 -6 -6 -------- Run | Yrd Mat Mat Mat Fac Low Low Zio Pro Fac Ext Cet Hostile Shots Fired 629 | . 78 73 148 . 30 . . 25 38 164 73 Missed 195 | . 21 23 43 . 14 . . 10 15 47 22 Hits 434 | . 57 50 105 . 16 . . 15 23 117 51 Projectile 434 | . 57 50 105 . 16 . . 15 23 117 51 Critical Strikes 8 | . . 1 . . . . . . . . 7 Damage Taken 6079 | . 705 536 1376 . 246 . . 249 357 1213 1397 Core 420 | . 94 74 75 . 29 . . 45 . 51 52 Absorbed by Shields 145 | . . . . . . . . . . 145 . Redirected to Shielding 52 | . . . 52 . . . . . . . . Core Remaining (%) 83 | 100 62 81 86 . . . . 89 . . . Volleys Fired 309 | . 44 36 114 . 18 . 10 21 8 50 8 Largest 2 | . 2 2 2 . 2 . 2 2 2 2 2 Hottest 92 | . 60 63 74 . 74 . 85 81 81 92 92 Shots Fired 607 | . 88 72 227 . 36 . 13 42 16 99 14 Gun 184 | . 70 19 88 . . . 7 . . . . Cannon 410 | . 18 53 139 . 36 . 6 42 16 98 2 Launcher 13 | . . . . . . . . . . 1 12 Special . | . . . . . . . . . . . . Kinetic 587 | . 88 72 227 . 36 . 6 42 16 98 2 Thermal 7 | . . . . . . . 7 . . . . Explosive 13 | . . . . . . . . . . 1 12 Electromagnetic . | . . . . . . . . . . . . Robot Hit Streak 17 | . 10 17 15 . 3 . . 4 9 9 8 Robot Miss Streak 8 | . 5 4 7 . 5 . . 8 1 5 1 Penetration Max . | . . . . . . . . . . . . Secondary Targets 1 | . 1 . . . . . . . . . . Max Gunslinging Chain 1 | . 1 . . . . . . . . . . Shots Hit Robots 322 | . 62 46 121 . 13 . . 16 11 51 2 Core Hits 249 | . 26 21 50 . 8 . . 8 5 38 93 Critical Kills 1 | . . . . . . . . . . 1 . Critical Parts Destroyed 5 | . 2 . . . . . . . . 3 . Critical Strikes 15 | . 2 3 3 . 1 . . 1 . 5 . Destroy 6 | . 2 . . . . . . . . 4 . Blast 9 | . . 3 3 . 1 . . 1 . 1 . Melee Attacks 3 | . . . . . . . . . . 3 . Impact . | . . . . . . . . . . . . Slashing 3 | . . . . . . . . . . 3 . Piercing . | . . . . . . . . . . . . Sneak Attacks . | . . . . . . . . . . . . Combat Hostiles . | . . . . . . . . . . . . Follow-up Attacks . | . . . . . . . . . . . . Damage Inflicted 8711 | . 765 863 2592 . 314 . . 415 241 1701 1820 Guns 1752 | . 508 226 1018 . . . . . . . . Cannons 4753 | . 240 632 1486 . 304 . . 415 227 1416 33 Explosions 2054 | . . . . . . . . . . 267 1787 Melee . | . . . . . . . . . . . . Ramming 152 | . 17 5 88 . 10 . . . 14 18 . Kinetic 6505 | . 748 858 2504 . 304 . . 415 227 1416 33 Thermal . | . . . . . . . . . . . . Explosive 2054 | . . . . . . . . . . 267 1787 Electromagnetic . | . . . . . . . . . . . . Impact . | . . . . . . . . . . . . Slashing . | . . . . . . . . . . . . Piercing . | . . . . . . . . . . . . Highest Corruption 5 | . . . 5 . . . . . . 1 1 Average Corruption 2 | . . . 4 . . . . . . 1 1 Corruption Purged . | . . . . . . . . . . . . Corruption Blocked . | . . . . . . . . . . . . Effects 17 | . . . 13 . . . . . . 2 2 Message Errors 4 | . . . 2 . . . . . . 1 1 Matter Fused 7 | . . . 5 . . . . . . 1 1 Heat Flow Errors 1 | . . . 1 . . . . . . . . Energy Discharges 4 | . . . 4 . . . . . . . . Alerts 1 | . . . 1 . . . . . . . . Overload Shots . | . . . . . . . . . . . . Overflow Damage 38 | . 7 4 8 . . . . 6 . 13 . Projectiles 38 | . 7 4 8 . . . . 6 . 13 . Explosions . | . . . . . . . . . . . . Melee . | . . . . . . . . . . . . Knockbacks 32 | . 9 4 10 . 1 . . 2 . 6 . Impact 2 | . 1 . 1 . . . . . . . . Kinetic 27 | . 5 4 9 . 1 . . 2 . 6 . Secondary 3 | . 3 . . . . . . . . . . Self-Inflicted Damage 37 | . . . . . . . . . . . 37 Shots 2 | . . . . . . . . . . . 2 Rammed 22 | . 6 1 7 . 3 . . . 3 2 . Targets Rammed 24 | . 6 1 9 . 3 . . . 3 2 . Kicked . | . . . . . . . . . . . . Crushed 2 | . . . 2 . . . . . . . . Highest Temperature 300 | . 121 45 147 . 21 . 238 108 114 300 30 Average Temperature 56 | . 39 12 21 . 7 . 91 32 48 99 17 Received Heat Transfer 1387 | . 432 186 486 . . . . 27 24 223 9 Effects 1 | . . . . . . . . . . 1 . Energy Bleed 1 | . . . . . . . . . . 1 . Siege Activations . | . . . . . . . . . . . . Martial Activations . | . . . . . . . . . . . . Shielding Activations . | . . . . . . . . . . . . Robots Disrupted . | . . . . . . . . . . . . Combat Hostiles . | . . . . . . . . . . . . Robots Corrupted 1 | . . . 1 . . . . . . . . Combat Hostiles . | . . . . . . . . . . . . Parts Fried . | . . . . . . . . . . . . Impact Corruptions 1 | . . . 1 . . . . . . . . Robots Melted . | . . . . . . . . . . . . Combat Hostiles . | . . . . . . . . . . . . Parts Melted 1 | . . . . . . . . . 1 . . Heat Transferred . | . . . . . . . . . . . . Parts Sabotaged . | . . . . . . . . . . . . Parts Stolen . | . . . . . . . . . . . . Parts Stripped . | . . . . . . . . . . . . Power Chain Reactions . | . . . . . . . . . . . . Alert | -11 -10 -9 -8 -7 -7 -7 -7 -6 -6 -6 -6 ------- Run | Yrd Mat Mat Mat Fac Low Low Zio Pro Fac Ext Cet Maximum Alert Level 2 | . . . 1 . . . . . 1 2 1 Low Security (%) 62 | 100 100 100 41 100 . . . . 47 33 54 Level 1 31 | . . . 58 . . . . . 52 25 45 Level 2 6 | . . . . . . . . . . 40 . Level 3 . | . . . . . . . . . . . . Level 4 . | . . . . . . . . . . . . Level 5 . | . . . . . . . . . . . . High Security . | . . . . . . . . . . . . Max Security . | . . . . . . . . . . . . Peak Influence 516 | . 106 126 336 130 . . . . 296 516 249 Initial 296 | . . 26 35 130 . . . . 296 90 249 Average 162 | . 32 48 198 53 . . . . 213 306 187 Influence Increases 3543 | . 298 382 852 . 170 . . 482 329 872 158 Destroy 0b10 Robot/C 1940 | . 180 220 460 . 120 . . 280 100 500 80 Destroy 0b10 Robot/NC 165 | . 15 25 80 . 5 . . 10 . 20 10 Destroy Leader 412 | . 54 58 124 . 30 . . 50 30 66 . Allied During Kill 335 | . . . . . . . . 127 12 195 1 Successful Hack 51 | . 18 17 . . . . . . 4 12 . Disable Machine 120 | . . 30 60 . . . . . 15 15 . Destroy Structure 130 | . 1 2 23 . . . . . 3 34 67 Advance Influence 150 | . . . . . . . . . 150 . . Partial Spotted 15 | . . . 15 . . . . . . . . Lose Combat Pursuer 225 | . 30 30 90 . 15 . . 15 15 30 . Influence Decreases 3466 | . 235 359 651 287 170 . . 249 377 611 527 Entered New Map 624 | . . 37 51 157 . . . . 87 95 197 Time Decay 2346 | . 225 266 580 130 170 . . 169 230 416 160 Lost Part 160 | . 10 . 20 . . . . . . 20 110 Lost Ally 280 | . . . . . . . . 80 60 80 60 Purge Threat 56 | . . 56 . . . . . . . . . Squads Dispatched 8 | . 1 1 1 . . . . . 4 1 . Investigation 2 | . . . . . . . . . 1 1 . Extermination 1 | . . . . . . . . . 1 . . Reinforcement 5 | . 1 1 1 . . . . . 2 . . Assault . | . . . . . . . . . . . . Garrison . | . . . . . . . . . . . . Intercept . | . . . . . . . . . . . . Searches Triggered . | . . . . . . . . . . . . Construction Impeded 2 | . . . . . . . . . 2 . . Haulers Reinforced . | . . . . . . . . . . . . Active Scanning Responses . | . . . . . . . . . . . . Cargo Convoy Interrupts . | . . . . . . . . . . . . Stealth | -11 -10 -9 -8 -7 -7 -7 -7 -6 -6 -6 -6 --------- Run | Yrd Mat Mat Mat Fac Low Low Zio Pro Fac Ext Cet Distress Signals 13 | . 1 2 4 . . . . 1 . 3 2 Communications Jammed . | . . . . . . . . . . . . Distress Signals . | . . . . . . . . . . . . Times Spotted 147 | . 21 22 43 . 6 . . 14 8 27 6 Peak Tracking Total 7 | . 4 4 5 . 4 . . 4 3 7 5 Tactical Retreats 12 | . 2 1 4 . 1 . . 1 1 2 . Traps | -11 -10 -9 -8 -7 -7 -7 -7 -6 -6 -6 -6 ------- Run | Yrd Mat Mat Mat Fac Low Low Zio Pro Fac Ext Cet Traps Triggered 4 | . . . 3 . . . . . . 1 . Indirectly . | . . . . . . . . . . . . Trap Hack Attempts . | . . . . . . . . . . . . Triggered . | . . . . . . . . . . . . Disarmed . | . . . . . . . . . . . . Reprogrammed . | . . . . . . . . . . . . Reused . | . . . . . . . . . . . . Traps Extracted . | . . . . . . . . . . . . Installed . | . . . . . . . . . . . . Triggered . | . . . . . . . . . . . . Machines | -11 -10 -9 -8 -7 -7 -7 -7 -6 -6 -6 -6 ---------- Run | Yrd Mat Mat Mat Fac Low Low Zio Pro Fac Ext Cet Machines Disabled 8 | . . 2 4 . . . . . 1 1 . Max in Single Turn 1 | . . 1 1 . . . . . 1 1 . Machines Repaired . | . . . . . . . . . . . . Machines Dismantled . | . . . . . . . . . . . . Machines Sabotaged . | . . . . . . . . . . . . Overloaded Fab Kills . | . . . . . . . . . . . . Hacking | -11 -10 -9 -8 -7 -7 -7 -7 -6 -6 -6 -6 --------- Run | Yrd Mat Mat Mat Fac Low Low Zio Pro Fac Ext Cet Machines Accessed 20 | . 1 4 4 . 1 . . . 3 6 1 Terminals 16 | . 1 4 3 . . . . . 1 6 1 Fabricators 2 | . . . . . . . . . 2 . . Repair Stations . | . . . . . . . . . . . . Recycling Units . | . . . . . . . . . . . . Scanalyzers 1 | . . . 1 . . . . . . . . Garrison Access . | . . . . . . . . . . . . Total Hacks 46 | . 7 7 8 . 1 . . . 8 14 1 Successful 23 | . 6 5 3 . 1 . . . 5 3 . Failed 23 | . 1 2 5 . . . . . 3 11 1 Catastrophic 4 | . . . 2 . . . . . 1 1 . Database Lockouts . | . . . . . . . . . . . . Manual 17 | . . . 3 . . . 2 . 6 6 . Terminals 35 | . 7 7 5 . . . . . 1 14 1 Fabricators 7 | . . . . . . . . . 7 . . Repair Stations . | . . . . . . . . . . . . Recycling Units . | . . . . . . . . . . . . Scanalyzers 3 | . . . 3 . . . . . . . . Garrison Access . | . . . . . . . . . . . . Terminal Hacks 17 | . 6 5 1 . 1 . . . 1 3 . Record 1 | . . . . . 1 . . . . . . Prototype ID Bank 1 | . 1 . . . . . . . . . . Open Door 4 | . . . . . . . . . 1 3 . Alert Level 2 | . 1 . 1 . . . . . . . . Unreport Threat 1 | . . 1 . . . . . . . . . Locate Traps 2 | . 1 1 . . . . . . . . . Maintenance Status 1 | . . 1 . . . . . . . . . Registered Components 1 | . 1 . . . . . . . . . . Registered Prototypes 1 | . 1 . . . . . . . . . . Zone Layout 3 | . 1 2 . . . . . . . . . Fabricator Hacks 4 | . . . . . . . . . 4 . . Network Status 1 | . . . . . . . . . 1 . . Load Schematic 2 | . . . . . . . . . 2 . . Build 1 | . . . . . . . . . 1 . . Repair Station Hacks . | . . . . . . . . . . . . Recycling Unit Hacks . | . . . . . . . . . . . . Scanalyzer 2 | . . . 2 . . . . . . . . Insert Component 1 | . . . 1 . . . . . . . . Analyze 1 | . . . 1 . . . . . . . . Garrison Access Hacks . | . . . . . . . . . . . . Unauthorized Hacks . | . . . . . . . . . . . . Terminals . | . . . . . . . . . . . . Fabricators . | . . . . . . . . . . . . Repair Stations . | . . . . . . . . . . . . Recycling Units . | . . . . . . . . . . . . Scanalyzers . | . . . . . . . . . . . . Garrison Access . | . . . . . . . . . . . . Data Cores Recovered 1 | . . . 1 . . . . . . . . Used . | . . . . . . . . . . . . Hacking Detections 14 | . 1 1 4 . . . . . 2 5 1 Full Trace Events 2 | . . . . . . . . . 1 1 . Feedback Events . | . . . . . . . . . . . . Feedback Blocked . | . . . . . . . . . . . . Robot Schematics Acquired . | . . . . . . . . . . . . Robots Built . | . . . . . . . . . . . . Authchips . | . . . . . . . . . . . . Time . | . . . . . . . . . . . . Total Robot Build Rating . | . . . . . . . . . . . . Part Schematics Acquired 1 | . . . 1 . . . . . . . . Parts Built 2 | . . . . . . . . . 2 . . Authchips . | . . . . . . . . . . . . Time 73 | . . . . . . . . . 73 . . Total Part Build Rating 6 | . . . . . . . . . 6 . . Parts Repaired . | . . . . . . . . . . . . Time . | . . . . . . . . . . . . Parts Recycled . | . . . . . . . . . . . . Recycled Matter . | . . . . . . . . . . . . Retrieved Matter . | . . . . . . . . . . . . Retrieved Components . | . . . . . . . . . . . . Parts Scanalyzed 1 | . . . 1 . . . . . . . . Part Schematics Acquired 1 | . . . 1 . . . . . . . . Parts Damaged . | . . . . . . . . . . . . Bothacking | -11 -10 -9 -8 -7 -7 -7 -7 -6 -6 -6 -6 ------------ Run | Yrd Mat Mat Mat Fac Low Low Zio Pro Fac Ext Cet Used RIF Installer . | . . . . . . . . . . . . Robots Hacked . | . . . . . . . . . . . . Non-combat . | . . . . . . . . . . . . Combat . | . . . . . . . . . . . . Robot Hacks Applied . | . . . . . . . . . . . . Relay Couplers Released . | . . . . . . . . . . . . Fabnet Peak Effective % . | . . . . . . . . . . . . Robots Rewired 7 | . . . . . . . . . . 7 . Allies Hacked . | . . . . . . . . . . . . Hacks Repelled . | . . . . . . . . . . . . Allies | -11 -10 -9 -8 -7 -7 -7 -7 -6 -6 -6 -6 -------- Run | Yrd Mat Mat Mat Fac Low Low Zio Pro Fac Ext Cet Total Allies 18 | . . . . . . . 6 1 . 11 . Largest Group 9 | . . . . . . . 6 6 3 9 5 Highest-Rated Group 401 | . . . . . . . 221 221 117 401 127 Highest-Rated Ally 159 | . . . . . . . 51 51 40 159 31 Zionite Dispatches 2 | . . . . . . . . . . 2 . Recon 1 | . . . . . . . . . . 1 . Trap Resupply 1 | . . . . . . . . . . 1 . Total Orders . | . . . . . . . . . . . . Ally Attacks 177 | . . . . . . . . 58 14 83 22 Total Damage 3265 | . . . . . . . . 1000 226 1618 421 Kills 25 | . . . . . . . . 11 1 13 . Allies Corrupted . | . . . . . . . . . . . . Allies Melted . | . . . . . . . . . . . . Intel | -11 -10 -9 -8 -7 -7 -7 -7 -6 -6 -6 -6 ------- Run | Yrd Mat Mat Mat Fac Low Low Zio Pro Fac Ext Cet Active Infowar (turns) 8588 | . . . 1792 337 890 519 2395 849 480 1004 322 Optics 693 | . . . 693 . . . . . . . . Sensors 7895 | . . . 1099 337 890 519 2395 849 480 1004 322 Robot Analysis Total . | . . . . . . . . . . . . Derelict Logs Recovered 5 | . . . . . 2 1 1 1 . . . Drone Launches . | . . . . . . . . . . . . Drone Recoveries . | . . . . . . . . . . . . Exploration | -11 -10 -9 -8 -7 -7 -7 -7 -6 -6 -6 -6 ------------- Run | Yrd Mat Mat Mat Fac Low Low Zio Pro Fac Ext Cet Turns Passed 10582 | 66 755 931 2030 337 890 519 2395 849 480 1004 326 Spaces Moved 5773 | 43 362 489 987 210 516 331 1466 475 238 476 180 Core 11 | 11 . . . . . . . . . . . Treads 5762 | 32 362 489 987 210 516 331 1466 475 238 476 180 Legs . | . . . . . . . . . . . . Wheels . | . . . . . . . . . . . . Hover . | . . . . . . . . . . . . Flight . | . . . . . . . . . . . . Fastest Speed 50 | 50 160 160 160 157 157 157 157 161 158 157 156 Average Speed 159 | 131 160 160 161 157 157 157 159 161 160 157 157 Slowest Speed 166 | 160 160 160 166 161 157 157 161 161 163 161 165 Overloaded Moves . | . . . . . . . . . . . . Propulsion Burnouts . | . . . . . . . . . . . . Robots Hopped . | . . . . . . . . . . . . Potential Cave-ins . | . . . . . . . . . . . . Cave-ins Triggered . | . . . . . . . . . . . . Exploration Rate (%) 53 | 4 71 51 76 5 75 53 87 69 8 75 66 Regions Visited 11 Branch Regions 6 Pre-discovered Areas 3 | . . . . . 1 . 2 . . . . Known Exits Taken 8 | . . . 1 1 1 1 1 1 1 1 . Unknown Exits Taken 3 | 1 1 1 . . . . . . . . . Scrap Searched 9 | . . . . . 1 3 3 2 . . . Spaces Dug 4 | . . . 4 . . . . . . . . Terrain Destroyed 315 | . . . 18 . 3 . . 11 1 36 246 Melee . | . . . . . . . . . . . . Projectile 60 | . . . 18 . 3 . . 11 1 26 1 AOE 255 | . . . . . . . . . . 10 245 Terrain Rammed . | . . . . . . . . . . . . Walls Destroyed . | . . . . . . . . . . . . Machines Disabled . | . . . . . . . . . . . . Actions | -11 -10 -9 -8 -7 -7 -7 -7 -6 -6 -6 -6 --------- Run | Yrd Mat Mat Mat Fac Low Low Zio Pro Fac Ext Cet Total 6563 | 49 455 569 1218 215 558 330 1515 518 319 623 194 Wait 184 | . 15 15 29 . 22 . 22 12 63 5 1 Move 5762 | 42 361 488 986 209 515 330 1465 474 237 475 180 Hop . | . . . . . . . . . . . . Pick Up 58 | 1 14 14 18 2 . . 4 3 . 2 . Fast Attach 15 | 6 1 . 5 1 . . 1 . . 1 . Attach 20 | . 2 3 6 1 . . 1 . 2 2 3 Detach 2 | . . . 2 . . . . . . . . Swap 57 | . 6 3 20 1 . . 5 3 3 14 2 Drop 67 | . 6 9 29 1 . . 7 5 3 7 . Fire 309 | . 44 36 114 . 18 . 10 21 8 50 8 Melee 3 | . . . . . . . . . . 3 . Ram . | . . . . . . . . . . . . Kick . | . . . . . . . . . . . . Crush 24 | . 6 1 9 . 3 . . . 3 2 . Escape Stasis . | . . . . . . . . . . . . Rewire 62 | . . . . . . . . . . 62 . Trap . | . . . . . . . . . . . . Miscellaneous . | . . . . . . . . . . . . Route ------- -11/Scrapyard -10/Materials (discovered 3 exits: *Mat x2 / [*Min]) -9/Materials (discovered 2 exits: *Mat / [*Min]) -8/Materials -7/Factory -7/Lower Caves -7/Lower Caves (discovered 2 exits: *Fac / *Zio) -7/Zion -6/Proximity Caves -6/Factory (discovered 2 exits: Low / *Ext) -6/Extension (discovered 2 exits: *Fac / *Cet) -6/Cetus (discovered 1 exit: *Arc) History --------- Turn | Location | Event 6 | -11/Scrapyard | Discovered new exit (range 16) 67 | -11/Scrapyard | Entered Materials 315 | -10/Materials | Build established: Mutant 391 | -10/Materials | Discovered new exit (range 16) 490 | -10/Materials | Discovered new exit (range 15) 712 | -10/Materials | Discovered new exit (range 12) 822 | -10/Materials | Entered another Materials area 822 | -9/Materials | Evolved 2 slots: Propulsion x1, Utility x1 918 | -9/Materials | Discovered new exit (range 16) 1719 | -9/Materials | Discovered new exit (range 6) 1753 | -9/Materials | Entered another Materials area 1753 | -8/Materials | Evolved 2 slots: Utility x2 3727 | -8/Materials | Discovered new exit (range 16) 3780 | -8/Materials | Identified exit to Factory 3783 | -8/Materials | Entered Factory 3783 | -7/Factory | Evolved 2 slots: Propulsion x1, Utility x1 4040 | -7/Factory | Discovered new exit (range 6) 4046 | -7/Factory | Identified exit to Lower Caves 4120 | -7/Factory | Entered Lower Caves 4272 | -7/Lower Caves | Learned location of 1 exit from Factory 4570 | -7/Lower Caves | Entered a destroyed Warlord outpost 4616 | -7/Lower Caves | Learned location of Extension (-6) 4979 | -7/Lower Caves | Encountered a Warlord checkpoint 4985 | -7/Lower Caves | Discovered new exit (range 11) 5005 | -7/Lower Caves | Identified exit to Lower Caves 5010 | -7/Lower Caves | Entered another Lower Caves area 5023 | -7/Lower Caves | Identified exit to Zion 5114 | -7/Lower Caves | Discovered new exit (range 3) 5119 | -7/Lower Caves | Identified exit to Factory 5529 | -7/Lower Caves | Entered Zion 5682 | -7/Zion | Learned location of Warlord (-4) 5716 | -7/Zion | Learned Factory stockpile data 5738 | -7/Zion | Gained Derelict followers 5930 | -7/Zion | Learned location of Quarantine (-2) 6045 | -7/Zion | Found Prototype Launcher 6045 | -7/Zion | Identified Rocket Array 6053 | -7/Zion | Found Rocket Array 6087 | -7/Zion | Given the Hacking Drone Bay 6388 | -7/Zion | Received a hallucinogenic algorithm 6593 | -7/Zion | Ran a hallucination algorithm 6596 | -7/Zion | Ran a hallucination algorithm 7578 | -7/Zion | Met Imprinter 7606 | -7/Zion | Imprinted 7609 | -7/Zion | Declared Zion's savior 7894 | -7/Zion | Discovered new exit (range 12) 7910 | -7/Zion | Identified exit to Proximity Caves 7924 | -7/Zion | Entered Proximity Caves 7924 | -6/Proximity Caves | Accompanied by 6 allies 8299 | -6/Proximity Caves | Spotter reported a threat 8744 | -6/Proximity Caves | Discovered exit to Factory (range 12) 8773 | -6/Proximity Caves | Entered Factory 8773 | -6/Factory | Accompanied by 3 allies 8773 | -6/Factory | Evolved 2 slots: Power x1, Propulsion x1 8774 | -6/Factory | Identified exit to Extension 8775 | -6/Factory | Identified exit to Lower Caves 9009 | -6/Factory | Fabricated Adv. Treads (x2) 9253 | -6/Factory | Entered Extension 9283 | -6/Extension | Disrupted transfer network 9317 | -6/Extension | Build established: Scavenger-Mutant 9325 | -6/Extension | Zion Recon squad teleported in 9373 | -6/Extension | Rescued A7 9497 | -6/Extension | Zion Trap Resupply teleported in 9705 | -6/Extension | Spotted B-75 Beast 9721 | -6/Extension | Spotted B-75 Beast 9741 | -6/Extension | Allies destroyed B-75 Beast 9749 | -6/Extension | Allies destroyed B-75 Beast 9771 | -6/Extension | Lost 3 allies 9999 | -6/Extension | Rescued a captive Derelict 10000 | -6/Extension | Rescued a captive Derelict 10177 | -6/Extension | Rescued a captive Derelict 10217 | -6/Extension | Discovered new exit (range 10) 10220 | -6/Extension | Discovered new exit (range 6) 10243 | -6/Extension | Identified exit to Cetus 10247 | -6/Extension | Identified exit to Factory 10257 | -6/Extension | Entered Cetus 10257 | -6/Cetus | Accompanied by 5 allies 10277 | -6/Cetus | Spotted Cetus Guard 10277 | -6/Cetus | Spotted Cetus Guard 10283 | -6/Cetus | Spotted Cetus Guard 10283 | -6/Cetus | Spotted Cetus Guard 10313 | -6/Cetus | Destroyed Cetus Guard 10319 | -6/Cetus | Destroyed Cetus Guard 10324 | -6/Cetus | Destroyed Cetus Guard 10324 | -6/Cetus | Destroyed Cetus Guard 10335 | -6/Cetus | Lost 4 allies 10355 | -6/Cetus | Lost 4 parts (3n1u) 10508 | -6/Cetus | Discovered new exit (range 16) 10530 | -6/Cetus | Identified exit to Archives 10565 | -6/Cetus | Spotted Cetus Guard 10566 | -6/Cetus | Spotted Cetus Guard 10583 | -6/Cetus | Self-destructed Last Messages --------------- 10570_ Penetrated by Slug. 10571_ Imp. Medium Treads destroyed. 10571_ Penetrated by Slug. 10572_ Critical hit (Destroy). 10572_ Adv. Treads destroyed. 10573_ Penetrated by Slug. 10573_ Hpw. Tractor Beam destroyed. 10574_ Slug penetrates Wall. 10575_ Penetrated by Slug. 10576_ The unstable cave ceiling collapses. 10576_ Rocket Array destroyed. 10577_ Penetrated by Slug. 10577_ Lgt. Fission Core destroyed. 10577_ Penetrated by Slug. 10578_ The unstable cave ceiling collapses. 10578_ Penetrated by Slug. 10578_ Rocket Array destroyed. 10579_ Penetrated by Slug. 10579_ Adv. Sensor Array destroyed. 10579_ Penetrated by Slug. Map ----- +----------------------------------------------------+ | ?????????????????????????????????????????? | | ?????????????????????????????????????????? | | ?????????????????????????????????????????? | | ?????????????????????????????????????????? | | ?????????????????????????????????????????? | | ?????????????????????????????????????????? | | ?????????????????????????????????????????? | | ?????????????????????????????????????????? | | ??????????????????????? ?????????????? | | ????????????????????? ???????????? | | ??????????????????? # ??????????? | | ???????????????????? # ??????????? | | ???????????????????? ???????????? | | ????????????????????? ???????????? | | ????????????????????? #???????????? | | ????????????????????## ???????????? | | ???????????????????## ????????????? | | ???????????????????# ????????????? | | ???????????????????# ?????????????? | | ????????????????????# ?????????????? | | ????????????????????? #?????????????? | | ??????????????????????# #?????????????? | | ??????????????????????#; #?????????????? | | ???????????????????????# #?????????????? | | ???????????????????????# #?????????????? | | ???????????????????????# @ #?????????????? | | ???????????????????????# #?????????????? | | ???????????????????????# #?????????????? | | """??##????????????????# #?????????????? | | " " #""???????????????# #?????????????? | | """""#"######??????????# #?????????????? | | """""#""""""#??????????# #?????????????? | | """""#" ""#??????????# #?????????????? | | " """#T ""#??????????# #?????????????? | | """ "#" ""#??????????# #?????????????? | | ############ ###########???? | | + #???? | | + > #???? | | + #???? | | ##########################???? | | """""""#T #????????????????????????????? | | #########"""#????????????????????????????? | | "#???????????????????????????????????????? | | "#???????????????????????????????????????? | | "#???????????????????????????????????????? | | "#???????????????????????????????????????? | | ##???????????????????????????????????????? | | "#???????????????????????????????????????? | | "#???????????????????????????????????????? | | "#???????????????????????????????????????? | +----------------------------------------------------+ Best States ------------- Heat Dissipation 50 Energy Generation 29 Energy Capacity 350 Matter Stores 300 Matter Capacity 300 Sight Range 20 Robot Scan Range 16 Terrain Scan Density 10 Armor Coverage 300 Weapon Shielding 66 Evasion (%) 40 Recoil Reduction 9 Offensive Hacking 12 Item Schematics ----------------- Adv. Treads | -8/Materials | Scanalyzed Robot Schematics ------------------ None Fabricated ------------ Adv. Treads | x2 | -6/Factory Repaired ---------- Nothing Alien Tech Used ----------------- None Achievements -------------- None Challenges ------------ None Game ------ Seed LongswordExperimentalRail Manual? 0 Play Time 00:56:42 Cumulative 70.3 hours Start 2025.05.25 @ 23:34:24 End 2025.05.26 @ 00:32:53 Sessions 1 Manual Loads 0 Difficulty Rogue Special Mode None Game No. 85 Rogue 84 Adventurer 1 Explorer 0 Win Type - Total 1 Types 1/0/0/0/0/0/0/0/0/0 Lore% 41 Gallery% 45 Achievement% 43 Wizard Run 0 Options --------- Layout 0 ASCII 0 Keyboard 0 Movement Numpad Keybinds 0 Fullscreen 1 Font 18/SmallcapsGlow Map View 76x50 Zoom Use 0% Tactical HUD 1 Map Filters NONE Filters NONE Steam 1 RUN: 4f3a948c-a4cd-40ab-a760-7ee6b5be74f2